Cogmind - Beta 14 @@@ ROGUE MODE // 2024.10.24 @ 02:44:28 Player: hairblade Result: Self-destructed Performance ------------- Evolutions (2) 1000 Regions Visited (3) 600 Robots Destroyed (14) 70 Value Destroyed (439) 439 Prototype IDs (3) 60 Alien Tech Used (0) 0 Bonus (0) 0 TOTAL SCORE: 2169 Bonus ------- None Cogmind --------- Core Integrity 462/550 Matter 300/300 Energy 105/160 System Corruption 0% Temperature Danger (444) Movement Walking (90) Location -8/Materials Parts ------- > --- POWER (1) -------- Light Nuclear Core > --- PROPULSION (3) --- VSS Leg VSS Leg VSS Leg > --- UTILITY (4) ------ Small Storage Unit Signal Interpreter Core Shielding Light Armor Plating > --- WEAPON (3) ------- Advanced Beam Rifle Advanced Beam Rifle Advanced Beam Rifle > --- INVENTORY (8) ---- Nuclear Core Aluminum Leg Carbon-fiber Leg High-capacity Storage Unit Medium Matter Pod (100) Targeting Computer Assault Rifle High-powered Shotgun Peak State ------------ > --- POWER ------------ Light Nuclear Core > --- PROPULSION ------- VSS Leg VSS Leg VSS Leg > --- UTILITY ---------- Small Storage Unit Signal Interpreter Core Shielding Light Armor Plating > --- WEAPON ----------- Advanced Beam Rifle Advanced Beam Rifle Advanced Beam Rifle > --- INVENTORY -------- Improved Ion Engine Light Treads Aluminum Leg High-capacity Storage Unit Seismic Detector Assault Rifle High-powered Shotgun [Rating: 29] Favorites ----------- Power Ion Engine Engine Ion Engine Power Core Light Nuclear Core Propulsion Light Treads Treads Light Treads Leg VSS Leg Utility Small Storage Unit Device Seismic Detector Storage Small Storage Unit Processor Signal Interpreter Protection Light Armor Plating Weapon Assault Rifle Energy Gun Advanced Beam Rifle Ballistic Gun Assault Rifle Build | -11 -10 -9 -8 ------- Run | Yrd Mat Mat Mat Slots Evolved 4 | . . 2 2 Power . | . . . . Propulsion 1 | . . 1 . Utility 2 | . . 1 1 Weapon 1 | . . . 1 Parts Attached 23 | 7 . 6 10 Power 2 | 1 . . 1 Engine 1 | 1 . . . Core 1 | . . . 1 Reactor . | . . . . Propulsion 9 | 2 . 3 4 Treads 5 | 2 . 2 1 Leg 4 | . . 1 3 Wheel . | . . . . Hover . | . . . . Flight . | . . . . Utility 6 | 2 . 3 1 Device 2 | 1 . 1 . Storage 1 | 1 . . . Processor 1 | . . 1 . Hackware . | . . . . Protection 2 | . . 1 1 Artifact . | . . . . Weapon 6 | 2 . . 4 Energy Gun 4 | . . . 4 Energy Cannon . | . . . . Ballistic Gun 2 | 2 . . . Ballistic Cannon . | . . . . Launcher . | . . . . Special Weapon . | . . . . Impact Weapon . | . . . . Slashing Weapon . | . . . . Piercing Weapon . | . . . . Special Melee Weapon . | . . . . Unidentified Prototypes 1 | . . . 1 Parts Lost 2 | . . . 2 Power 1 | . . . 1 Propulsion 1 | . . . 1 Utility . | . . . . Weapon . | . . . . Highest Loss Streak 2 | . . . 2 To Critical Strikes . | . . . . Average Slot Usage (%) 97 | . 100 99 92 Engine 10 | . 14 11 7 Treads 27 | . 28 30 23 Leg 1 | . . 2 2 Device 7 | . 14 7 . Storage 11 | . 14 11 9 Processor 5 | . . 8 9 Protection 5 | . . 5 12 Energy Gun 6 | . . . 20 Ballistic Gun 19 | . 28 22 6 Peak Build Rating 29 | 7 7 9 29 Average Rating 10 | 5 7 8 17 On Entrance 5 | . 7 7 9 Naked Turns . | . . . . Heaviest Build 20 | 15 15 17 20 Greatest Support 60 | 40 40 60 60 Greatest Overweight (x) 1 | 1 . . 1 Average Overweight (x) . | . . . . Largest Inventory Capacity 8 | 8 8 8 8 Average Capacity 7 | 7 8 8 8 Most Carried 8 | 5 8 8 8 Average Carried 6 | 2 6 7 7 Final Capacity 8 | 8 8 8 8 Final Carried 8 | 4 8 8 8 Class Distribution -------------------- 75% | Mutant 20% | Tank 4% | Scavenger-Tank Dominant Class ---------------- Mutant | -10/Materials Mutant | -9/Materials Tank | -8/Materials Resources | -11 -10 -9 -8 ----------- Run | Yrd Mat Mat Mat Matter Collected 571 | 241 91 96 143 Remotely . | . . . . Salvage Created 553 | 35 144 111 263 Parts 34 | 4 8 9 13 Haulers Intercepted 1 | . . . 1 Recyclers Shooed . | . . . . Parts Field Recycled . | . . . . Retrieved Matter . | . . . . Parts Self-Destructed . | . . . . Prevented . | . . . . Kills | -11 -10 -9 -8 ------- Run | Yrd Mat Mat Mat Combat Hostiles Destroyed 10 | . 4 2 4 Guns 10 | . 4 2 4 Classes Destroyed 8 | 1 3 1 3 Tunneler 2 | 2 . . . Hauler 1 | . . . 1 Watcher 1 | . 1 . . Swarmer 2 | . 2 . . Grunt 3 | . 2 . 1 Sentry 2 | . . 2 . Specialist 2 | . . . 2 Hunter 1 | . . . 1 Best Kill Streak 3 | 2 3 1 3 Combat Bots Only 3 | . 2 1 3 Max Kills in Single Turn 1 | 1 1 1 1 Gunslinging . | . . . . Exploded . | . . . . Melee . | . . . . Uniques/NPCs Destroyed . | . . . . Combat | -11 -10 -9 -8 -------- Run | Yrd Mat Mat Mat Hostile Shots Fired 76 | . 11 12 53 Missed 24 | . 4 1 19 Damage Taken 807 | . 77 170 560 Core 96 | . 8 . 88 Absorbed by Shields . | . . . . Redirected to Shielding 6 | . . . 6 Core Remaining (%) 98 | 100 96 100 . Volleys Fired 32 | 3 9 8 12 Largest 3 | 2 2 2 3 Hottest 183 | 40 40 40 183 Shots Fired 76 | 6 18 16 36 Gun 76 | 6 18 16 36 Cannon . | . . . . Launcher . | . . . . Special . | . . . . Kinetic 44 | 6 18 16 4 Thermal 32 | . . . 32 Explosive . | . . . . Electromagnetic . | . . . . Robot Hit Streak 13 | 2 6 13 8 Robot Miss Streak 3 | 1 1 2 3 Penetration Max . | . . . . Secondary Targets . | . . . . Shots Hit Robots 52 | 3 12 13 24 Core Hits 22 | 2 8 4 8 Critical Kills . | . . . . Critical Parts Destroyed . | . . . . Critical Strikes 2 | . . . 2 Burn 2 | . . . 2 Melee Attacks . | . . . . Impact . | . . . . Slashing . | . . . . Piercing . | . . . . Sneak Attacks . | . . . . Combat Hostiles . | . . . . Follow-up Attacks . | . . . . Damage Inflicted 813 | 42 154 174 443 Guns 813 | 42 154 174 443 Cannons . | . . . . Explosions . | . . . . Melee . | . . . . Ramming . | . . . . Kinetic 428 | 42 154 174 58 Thermal 385 | . . . 385 Explosive . | . . . . Electromagnetic . | . . . . Impact . | . . . . Slashing . | . . . . Piercing . | . . . . Highest Corruption . | . . . . Average Corruption . | . . . . Corruption Purged . | . . . . Corruption Blocked . | . . . . Overload Shots . | . . . . Overflow Damage . | . . . . Projectiles . | . . . . Explosions . | . . . . Melee . | . . . . Knockbacks . | . . . . Impact . | . . . . Kinetic . | . . . . Secondary . | . . . . Self-Inflicted Damage . | . . . . Shots . | . . . . Rammed . | . . . . Targets Rammed . | . . . . Kicked . | . . . . Crushed . | . . . . Highest Temperature 459 | . 2 . 459 Average Temperature 185 | . 2 . 188 Received Heat Transfer 120 | . 21 54 45 Effects 4 | . . . 4 Energy Bleed 1 | . . . 1 Interference 3 | . . . 3 Siege Activations . | . . . . Robots Corrupted . | . . . . Combat Hostiles . | . . . . Parts Fried . | . . . . Impact Corruptions . | . . . . Robots Melted . | . . . . Combat Hostiles . | . . . . Parts Melted 2 | . . . 2 Heat Transferred 888 | . . . 888 Parts Sabotaged . | . . . . Parts Stolen . | . . . . Parts Stripped . | . . . . Power Chain Reactions . | . . . . Alert | -11 -10 -9 -8 ------- Run | Yrd Mat Mat Mat Peak Influence 189 | 10 170 169 189 Initial 71 | . 6 71 70 Average 107 | 4 125 136 107 Maximum Alert Level . | . . . . Low Security (%) 100 | 100 100 100 100 Level 1 . | . . . . Level 2 . | . . . . Level 3 . | . . . . Level 4 . | . . . . Level 5 . | . . . . High Security . | . . . . Max Security . | . . . . Squads Dispatched 3 | . . 1 2 Investigation 1 | . . . 1 Extermination . | . . . . Reinforcement 2 | . . 1 1 Assault . | . . . . Garrison . | . . . . Intercept . | . . . . Searches Triggered . | . . . . Construction Impeded . | . . . . Haulers Reinforced . | . . . . Active Scanning Responses . | . . . . Cargo Convoy Interrupts . | . . . . Stealth | -11 -10 -9 -8 --------- Run | Yrd Mat Mat Mat Distress Signals 1 | . . 1 . Communications Jammed . | . . . . Distress Signals . | . . . . Times Spotted 22 | . 7 7 8 Peak Tracking Total 5 | . 5 3 3 Tactical Retreats 2 | . 1 . 1 Traps | -11 -10 -9 -8 ------- Run | Yrd Mat Mat Mat Traps Triggered . | . . . . Indirectly . | . . . . Trap Hack Attempts . | . . . . Triggered . | . . . . Disarmed 4 | . . . 4 Reprogrammed . | . . . . Reused . | . . . . Traps Extracted . | . . . . Installed . | . . . . Triggered . | . . . . Machines | -11 -10 -9 -8 ---------- Run | Yrd Mat Mat Mat Machines Disabled . | . . . . Max in Single Turn . | . . . . Machines Repaired . | . . . . Machines Dismantled . | . . . . Machines Sabotaged . | . . . . Overloaded Fab Kills . | . . . . Hacking | -11 -10 -9 -8 --------- Run | Yrd Mat Mat Mat Machines Accessed 6 | . 3 1 2 Terminals 6 | . 3 1 2 Fabricators . | . . . . Repair Stations . | . . . . Recycling Units . | . . . . Scanalyzers . | . . . . Garrison Access . | . . . . Total Hacks 17 | . 7 2 8 Successful 7 | . 2 1 4 Failed 10 | . 5 1 4 Catastrophic 2 | . 1 . 1 Database Lockouts . | . . . . Manual 7 | . 6 . 1 Terminals 17 | . 7 2 8 Fabricators . | . . . . Repair Stations . | . . . . Recycling Units . | . . . . Scanalyzers . | . . . . Garrison Access . | . . . . Terminal Hacks 7 | . 2 1 4 Robot Analysis 1 | . 1 . . Prototype ID Bank 1 | . . . 1 Locate Traps 1 | . . . 1 Disarm Traps 2 | . . . 2 Recall Investigation 1 | . . 1 . Zone Layout 1 | . 1 . . Fabricator Hacks . | . . . . Repair Station Hacks . | . . . . Recycling Unit Hacks . | . . . . Scanalyzer . | . . . . Garrison Access Hacks . | . . . . Unauthorized Hacks . | . . . . Terminals . | . . . . Fabricators . | . . . . Repair Stations . | . . . . Recycling Units . | . . . . Scanalyzers . | . . . . Garrison Access . | . . . . Data Cores Recovered . | . . . . Used . | . . . . Hacking Detections 6 | . 3 1 2 Full Trace Events 1 | . . . 1 Feedback Events . | . . . . Feedback Blocked . | . . . . Robot Schematics Acquired . | . . . . Robots Built . | . . . . Authchips . | . . . . Time . | . . . . Total Robot Build Rating . | . . . . Part Schematics Acquired . | . . . . Parts Built . | . . . . Authchips . | . . . . Time . | . . . . Total Part Build Rating . | . . . . Parts Repaired . | . . . . Time . | . . . . Parts Recycled . | . . . . Recycled Matter . | . . . . Retrieved Matter . | . . . . Retrieved Components . | . . . . Parts Scanalyzed . | . . . . Part Schematics Acquired . | . . . . Parts Damaged . | . . . . Bothacking | -11 -10 -9 -8 ------------ Run | Yrd Mat Mat Mat Used RIF Installer . | . . . . Robots Hacked . | . . . . Non-combat . | . . . . Combat . | . . . . Robot Hacks Applied . | . . . . Relay Couplers Released . | . . . . Fabnet Peak Effective % . | . . . . Robots Rewired . | . . . . Allies Hacked . | . . . . Hacks Repelled . | . . . . Allies | -11 -10 -9 -8 -------- Run | Yrd Mat Mat Mat Total Allies . | . . . . Largest Group . | . . . . Highest-Rated Group . | . . . . Highest-Rated Ally . | . . . . Total Orders . | . . . . Ally Attacks . | . . . . Total Damage . | . . . . Kills . | . . . . Allies Corrupted . | . . . . Allies Melted . | . . . . Intel | -11 -10 -9 -8 ------- Run | Yrd Mat Mat Mat Robot Analysis Total 1 | . 1 . . Derelict Logs Recovered . | . . . . Drone Launches . | . . . . Drone Recoveries . | . . . . Exploration | -11 -10 -9 -8 ------------- Run | Yrd Mat Mat Mat Turns Passed 1148 | 156 342 339 311 Spaces Moved 578 | 85 189 166 138 Core 9 | 9 . . . Treads 554 | 76 189 166 123 Legs 15 | . . . 15 Wheels . | . . . . Hover . | . . . . Flight . | . . . . Fastest Speed 50 | 50 160 160 90 Average Speed 157 | 150 160 160 153 Slowest Speed 180 | 160 160 160 180 Overloaded Moves . | . . . . Propulsion Burnouts . | . . . . Robots Hopped . | . . . . Cave-ins Triggered . | . . . . Exploration Rate (%) 20 | 5 36 22 18 Regions Visited 3 Branch Regions . Pre-discovered Areas . | . . . . Known Exits Taken 1 | . . 1 . Unknown Exits Taken 2 | 1 1 . . Scrap Searched . | . . . . Spaces Dug . | . . . . Terrain Destroyed . | . . . . Melee . | . . . . Projectile . | . . . . AOE . | . . . . Terrain Rammed . | . . . . Walls Destroyed . | . . . . Machines Disabled . | . . . . Actions | -11 -10 -9 -8 --------- Run | Yrd Mat Mat Mat Total 753 | 107 211 224 211 Wait 83 | 2 10 36 35 Move 575 | 84 188 165 138 Hop . | . . . . Pick Up 28 | 11 4 5 8 Fast Attach 3 | . . . 3 Attach 13 | 7 . 2 4 Detach . | . . . . Swap 7 | . . 4 3 Drop 12 | . . 4 8 Fire 32 | 3 9 8 12 Melee . | . . . . Ram . | . . . . Kick . | . . . . Crush . | . . . . Escape Stasis . | . . . . Rewire . | . . . . Trap . | . . . . Miscellaneous . | . . . . Route ------- -11/Scrapyard -10/Materials -9/Materials -8/Materials History --------- Turn | Location | Event 7 | -11/Scrapyard | Discovered new exit (range 16) 157 | -11/Scrapyard | Entered Materials 310 | -10/Materials | Build established: Mutant 477 | -10/Materials | Discovered new exit (range 8) 499 | -10/Materials | Entered another Materials area 499 | -9/Materials | Evolved 2 slots: Propulsion x1, Utility x1 739 | -9/Materials | Discovered new exit (range 16) 836 | -9/Materials | Identified exit to Materials 838 | -9/Materials | Entered another Materials area 838 | -8/Materials | Evolved 2 slots: Utility x1, Weapon x1 1149 | -8/Materials | Self-destructed Last Messages --------------- Dropped Lgt. Treads. Acquired Carbon-fiber Leg. Dropped Seismic Detector. Acquired Targeting Computer. Connecting with Terminal... >>Traps(Disarm) Disarmed 1 Alarm Trap. >>Traps(Locate) Found 3 traps in 1 array: 3x Shock Trap Map updated. >>Traps(Disarm) Disarmed 3 Shock Traps. >>Prototypes Downloading prototype IDs... Rocket Array Aerolev Unit A-02 Transporter destroyed. Overheating: System interference. Signal Interpreter temporarily disabled. Map ----- +----------------------------------------------------+ | ?????????????????????????????????????????????????? | | ?????????????????????????????????????????????????? | | ?????????????????????????????????????????????????? | | ?????????????????????????????????????????????????? | | ?????????????????????????????????????????????????? | | ?????????????????????????????????????????????????? | | ?????????????????????????????????????????????????? | | ?????????????????????????????????????????????????? | | ?????????????????????????????????????????????????? | | ?????????????????????????????????????????????????? | | ?????????????????????????????????????????????????? | | ???????????????????????###########???????????????? | | ???????????????????????# #???????????????? | | ???????????????????????# #???????????????? | | ???????????????????????# #???????????????? | | ???????????????????????# #???????????????? | | ???????????????????????# #???????????????? | | ???????????????????????# = %=#???????????????? | | ???????????????????????# [ [= #???????????????? | | ???????????????????????# [% %= #???????????????? | | ???????????????????????#####+#####???????????????? | | ??????????????????????????# % #???????????????? | | ?????????????????# ########= * #???????????????? | | ???????????????? # T ! #???????????????? | | ?????????????????# #???????????????? | | ?????????????????# ! @ #???????????????? | | ?????????????????# ![[ ##??????????#???? | | ?????????????????###+##%%! ######## #??? | | ??????????????????????#[! % #??? | | ??????????????????????# H +??? | | ??????????????????????#a "" t #??? | | ??????????????????????# """ ######### #??? | | ??????????????????????# """ "" #???###???? | | ??????????????????????# T" ########??? | | ??????????????????????# w "" ## #??? | | ?????????????????????## # ## #??? | | ?????????????????????# m ####/#### #??? | | ?????????????????????# [ + #??? | | ?????????????????????# [ #### #??? | | ?????????????????????# [ #?########### | | ?????????????????????# #?# # | | ?????????????????????# #?# # | | ?????????????????????# [[ ### * # | | ??????????????? [ # # | | ??????????????? + """ """ # | | ??????????????? # """ """ # | | ???????????????####### ##"T"###### # """ """ # | | ?????????????????????# ?#####????# # # | | ?????????????????????# ??????????# ########### | | ?????????????????????# ??????????# #?????????? | +----------------------------------------------------+ Best States ------------- Heat Dissipation 31 Energy Generation 14 Energy Capacity 250 Matter Stores 300 Matter Capacity 300 Sight Range 16 Robot Scan Range 14 Terrain Scan Density 10 Armor Coverage 150 Core Shielding 20 Evasion (%) 40 Recoil Reduction 3 Item Schematics ----------------- None Robot Schematics ------------------ None Fabricated ------------ Nothing Alien Tech Used ----------------- None Achievements -------------- None Challenges ------------ None Game ------ Seed ThermicFactoryObliterator Manual? 0 Play Time 00:15:06 Cumulative 19.8 hours Start 2024.09.14 @ 12:21:27 End 2024.10.24 @ 02:44:28 Sessions 5 Manual Loads 0 Difficulty Rogue Special Mode None Game No. 24 Rogue 24 Adventurer 0 Explorer 0 Win Type - Total 0 Types 0/0/0/0/0/0/0/0/0 Lore% 13 Gallery% 25 Achievement% 21 Wizard Run 0 Options --------- Layout 0 ASCII 0 Keyboard 0 Movement Mouse Keybinds 0 Fullscreen 1 Font 18/SmallcapsGlow Map View 76x50 Zoom Use 0% Tactical HUD 0 Map Filters NONE Filters NONE Steam 1 RUN: fe73ae00-4437-441e-84b0-555d0355d2bc